[Event "Early Titled Tuesday Blitz | February 8 2022"]
[White "Kiseleva, Arina"]
[Black "Schut, Han"]
[WhiteFideId "4164989"]
[BlackFideId "1005561"]
[WhiteElo "1866"]
[BlackElo "2057"]
[Result "0-1"]
[Round "11"]
[TimeControl "180+1"]
[Date "2022.02.08"]
[WhiteClock "0:00:03"]
[BlackClock "0:00:09"]

1. d4 {[%clk 0:03:00]}  Nf6 {[%clk 0:02:59]} 2. Nf3 {[%clk 0:02:59]}  g6 {[%clk 0:02:59]} 3. Nbd2 {[%clk 0:02:57]}  d5 {[%clk 0:02:59]} 4. e3 {[%clk 0:02:55]}  Bg7 {[%clk 0:02:59]} 5. Bd3 {[%clk 0:02:53]}  O-O {[%clk 0:02:59]} 6. O-O {[%clk 0:02:54]}  c5 {[%clk 0:02:59]} 7. dxc5 {[%clk 0:02:52]}  Nbd7 {[%clk 0:02:57]} 8. Rb1 {[%clk 0:02:32]}  Nxc5 {[%clk 0:02:56]} 9. Qe2 {[%clk 0:02:24]}  a6 {[%clk 0:02:37]} 10. Rd1 {[%clk 0:02:15]}  b5 {[%clk 0:02:15]} 11. a3 {[%clk 0:02:06]}  Bb7 {[%clk 0:02:15]} 12. b3 {[%clk 0:01:50]}  Qc7 {[%clk 0:02:08]} 13. Bb2 {[%clk 0:01:46]}  Rfe8 {[%clk 0:02:01]} 14. Ne5 {[%clk 0:01:36]}  Nfe4 {[%clk 0:01:47]} 15. Nxe4 {[%clk 0:01:17]}  dxe4 {[%clk 0:01:41]} 16. b4 {[%clk 0:01:13]}  exd3 {[%clk 0:01:38]} 17. Nxd3 {[%clk 0:01:07]}  Qc6 {[%clk 0:01:16]} 18. f3 {[%clk 0:00:55]}  Nxd3 {[%clk 0:01:09]} 19. Bxg7 {[%clk 0:00:51]}  Kxg7 {[%clk 0:01:08]} 20. cxd3 {[%clk 0:00:52]}  Rac8 {[%clk 0:01:06]} 21. e4 {[%clk 0:00:42]}  e5 {[%clk 0:01:06]} 22. h4 {[%clk 0:00:39]}  Red8 {[%clk 0:01:01]} 23. Qe3 {[%clk 0:00:32]}  Qd6 {[%clk 0:00:58]} 24. Qg5 {[%clk 0:00:27]}  f6 {[%clk 0:00:56]} 25. Qg3 {[%clk 0:00:25]}  Qd4+ {[%clk 0:00:53]} 26. Kh2 {[%clk 0:00:24]}  Qe3 {[%clk 0:00:53]} 27. Qh3 {[%clk 0:00:19]}  Rxd3 {[%clk 0:00:39]} 28. Rxd3 {[%clk 0:00:15]}  Qxd3 {[%clk 0:00:39]} 29. Rg1 {[%clk 0:00:13]}  Rc7 {[%clk 0:00:25]} 30. Qe6 {[%clk 0:00:12]}  Qd7 {[%clk 0:00:25]} 31. Qb3 {[%clk 0:00:11]}  Qf7 {[%clk 0:00:24]} 32. Qb2 {[%clk 0:00:10]}  Bc8 {[%clk 0:00:22]} 33. Qe2 {[%clk 0:00:09]}  Be6 {[%clk 0:00:23]} 34. Qe3 {[%clk 0:00:09]}  h5 {[%clk 0:00:21]} 35. Qb6 {[%clk 0:00:09]}  Rd7 {[%clk 0:00:20]} 36. Rc1 {[%clk 0:00:08]}  Bc4 {[%clk 0:00:19]} 37. a4 {[%clk 0:00:07]}  Rd2 {[%clk 0:00:18]} 38. Qxa6 {[%clk 0:00:07]}  Qd7 {[%clk 0:00:17]} 39. axb5 {[%clk 0:00:06]}  Be2 {[%clk 0:00:07]} 40. b6 {[%clk 0:00:04]}  Bxa6 {[%clk 0:00:05]} 41. Rc7 {[%clk 0:00:03]}  Qxc7 {[%clk 0:00:04]} 42. bxc7 {[%clk 0:00:03]}  Rc2 {[%clk 0:00:05]} 43. b5 {[%clk 0:00:03]}  Rxc7 {[%clk 0:00:05]} 44. bxa6 {[%clk 0:00:03]}  Ra7 {[%clk 0:00:05]} 45. g4 {[%clk 0:00:03]}  Rxa6 {[%clk 0:00:06]} 46. gxh5 {[%clk 0:00:03]}  Ra3 {[%clk 0:00:06]} 47. Kg3 {[%clk 0:00:03]}  gxh5 {[%clk 0:00:06]} 48. Kf2 {[%clk 0:00:03]}  Kg6 {[%clk 0:00:07]} 49. Kg3 {[%clk 0:00:03]}  f5 {[%clk 0:00:07]} 50. exf5+ {[%clk 0:00:03]}  Kxf5 {[%clk 0:00:08]} 51. Kh3 {[%clk 0:00:03]}  Ra2 {[%clk 0:00:09]} 52. Kg3 {[%clk 0:00:03]}  Ra3 {[%clk 0:00:08]} 53. Kg2 {[%clk 0:00:03]}  Kf4 {[%clk 0:00:09]} 54. Kf2 {[%clk 0:00:03]}  Rxf3+ {[%clk 0:00:09]} 0-1


[Site "https://www.chess.com"]

[Event "Early Titled Tuesday Blitz | February 8 2022"]
[White "Kopylov, Alexander A."]
[Black "Nesterov, Arseniy"]
[WhiteFideId "4164857"]
[BlackFideId "24198455"]
[WhiteElo "2436"]
[BlackElo "2489"]
[Result "0-1"]
[Round "11"]
[TimeControl "180+1"]
[Date "2022.02.08"]
[WhiteClock "0:00:07"]
[BlackClock "0:00:05"]

1. e4 {[%clk 0:03:00]}  e5 {[%clk 0:03:00]} 2. Nf3 {[%clk 0:03:00]}  Nc6 {[%clk 0:03:00]} 3. Bc4 {[%clk 0:03:01]}  Nf6 {[%clk 0:02:59]} 4. d3 {[%clk 0:03:01]}  Bc5 {[%clk 0:02:59]} 5. Be3 {[%clk 0:03:01]}  Bb6 {[%clk 0:02:58]} 6. Nc3 {[%clk 0:02:59]}  d6 {[%clk 0:02:58]} 7. h3 {[%clk 0:02:50]}  h6 {[%clk 0:02:58]} 8. O-O {[%clk 0:02:34]}  O-O {[%clk 0:02:58]} 9. d4 {[%clk 0:02:34]}  exd4 {[%clk 0:02:36]} 10. Nxd4 {[%clk 0:02:35]}  Nxd4 {[%clk 0:02:35]} 11. Bxd4 {[%clk 0:02:35]}  Re8 {[%clk 0:02:36]} 12. Re1 {[%clk 0:02:32]}  Be6 {[%clk 0:02:33]} 13. Bb5 {[%clk 0:02:25]}  Bd7 {[%clk 0:02:30]} 14. Bxf6 {[%clk 0:02:12]}  gxf6 {[%clk 0:02:18]} 15. Bxd7 {[%clk 0:02:10]}  Qxd7 {[%clk 0:02:19]} 16. Nd5 {[%clk 0:02:10]}  Qe6 {[%clk 0:02:11]} 17. Qf3 {[%clk 0:02:08]}  Kg7 {[%clk 0:02:10]} 18. Rad1 {[%clk 0:02:04]}  c6 {[%clk 0:02:02]} 19. Nf4 {[%clk 0:01:48]}  Qe5 {[%clk 0:02:02]} 20. Nd3 {[%clk 0:01:48]}  Qe6 {[%clk 0:01:39]} 21. Nf4 {[%clk 0:01:36]}  Qe5 {[%clk 0:01:39]} 22. Nh5+ {[%clk 0:01:37]}  Kg6 {[%clk 0:01:39]} 23. Ng3 {[%clk 0:01:37]}  Kh7 {[%clk 0:01:15]} 24. Nf5 {[%clk 0:01:33]}  Rg8 {[%clk 0:00:56]} 25. Rxd6 {[%clk 0:01:28]}  Rg5 {[%clk 0:00:37]} 26. Rd7 {[%clk 0:01:26]}  Qe6 {[%clk 0:00:33]} 27. Re7 {[%clk 0:01:16]}  Qxa2 {[%clk 0:00:25]} 28. Nd6 {[%clk 0:01:07]}  Rf8 {[%clk 0:00:07]} 29. Qxf6 {[%clk 0:01:01]}  Rg6 {[%clk 0:00:07]} 30. Qf5 {[%clk 0:00:54]}  Qxb2 {[%clk 0:00:06]} 31. Nxf7 {[%clk 0:00:48]}  Qf6 {[%clk 0:00:04]} 32. Ne5+ {[%clk 0:00:19]}  Qxe7 {[%clk 0:00:04]} 33. Qxg6+ {[%clk 0:00:19]}  Kh8 {[%clk 0:00:04]} 34. Qxh6+ {[%clk 0:00:19]}  Kg8 {[%clk 0:00:05]} 35. Ng6 {[%clk 0:00:19]}  Bxf2+ {[%clk 0:00:05]} 36. Kh1 {[%clk 0:00:17]}  Qg7 {[%clk 0:00:05]} 37. Qg5 {[%clk 0:00:07]}  Bxe1 {[%clk 0:00:05]} 38. Ne7+ {[%clk 0:00:07]}  Kf7 {[%clk 0:00:05]} 0-1


[Site "https://www.chess.com"]

[Event "Early Titled Tuesday Blitz | February 8 2022"]
[White "Lazavik, Denis"]
[Black "Kosakowski, Jakub"]
[WhiteFideId "13515110"]
[BlackFideId "1185080"]
[WhiteElo "2436"]
[BlackElo "2476"]
[Result "1-0"]
[Round "11"]
[TimeControl "180+1"]
[Date "2022.02.08"]
[WhiteClock "0:00:09"]
[BlackClock "0:00:01"]

1. d4 {[%clk 0:03:00]}  Nf6 {[%clk 0:02:59]} 2. c4 {[%clk 0:03:01]}  e6 {[%clk 0:02:59]} 3. g3 {[%clk 0:03:01]}  d5 {[%clk 0:02:57]} 4. Nf3 {[%clk 0:03:01]}  Bb4+ {[%clk 0:02:58]} 5. Bd2 {[%clk 0:03:01]}  Be7 {[%clk 0:02:58]} 6. Bg2 {[%clk 0:03:01]}  O-O {[%clk 0:02:58]} 7. Qc2 {[%clk 0:03:01]}  Nbd7 {[%clk 0:02:58]} 8. O-O {[%clk 0:02:49]}  c6 {[%clk 0:02:57]} 9. Bf4 {[%clk 0:02:48]}  Ne4 {[%clk 0:02:57]} 10. Nc3 {[%clk 0:02:40]}  g5 {[%clk 0:02:31]} 11. Be3 {[%clk 0:01:36]}  Nd6 {[%clk 0:02:26]} 12. cxd5 {[%clk 0:01:25]}  cxd5 {[%clk 0:02:21]} 13. Ne5 {[%clk 0:01:23]}  Nf5 {[%clk 0:01:55]} 14. Nxd5 {[%clk 0:01:16]}  exd5 {[%clk 0:01:55]} 15. Qxf5 {[%clk 0:01:14]}  Nxe5 {[%clk 0:01:39]} 16. Qxe5 {[%clk 0:01:15]}  Be6 {[%clk 0:01:40]} 17. Bd2 {[%clk 0:01:08]}  Rc8 {[%clk 0:01:37]} 18. Rfc1 {[%clk 0:01:06]}  Rxc1+ {[%clk 0:01:30]} 19. Rxc1 {[%clk 0:01:05]}  Bf6 {[%clk 0:01:31]} 20. Qe3 {[%clk 0:01:05]}  Qb6 {[%clk 0:01:31]} 21. Bc3 {[%clk 0:01:05]}  Rc8 {[%clk 0:01:31]} 22. Rd1 {[%clk 0:01:05]}  h6 {[%clk 0:01:30]} 23. f4 {[%clk 0:00:58]}  Kg7 {[%clk 0:01:26]} 24. Rf1 {[%clk 0:00:53]}  Re8 {[%clk 0:00:54]} 25. Qf2 {[%clk 0:00:49]}  Bg4 {[%clk 0:00:46]} 26. e3 {[%clk 0:00:41]}  Qe6 {[%clk 0:00:41]} 27. e4 {[%clk 0:00:27]}  gxf4 {[%clk 0:00:26]} 28. e5 {[%clk 0:00:22]}  Be7 {[%clk 0:00:24]} 29. Qxf4 {[%clk 0:00:17]}  Bg5 {[%clk 0:00:19]} 30. Qf2 {[%clk 0:00:17]}  Bh5 {[%clk 0:00:14]} 31. Bd2 {[%clk 0:00:17]}  Bd8 {[%clk 0:00:13]} 32. Bf4 {[%clk 0:00:15]}  Bg6 {[%clk 0:00:13]} 33. Qe3 {[%clk 0:00:14]}  Rh8 {[%clk 0:00:06]} 34. h4 {[%clk 0:00:13]}  Qb6 {[%clk 0:00:06]} 35. Rf2 {[%clk 0:00:13]}  Be7 {[%clk 0:00:04]} 36. e6 {[%clk 0:00:11]}  f6 {[%clk 0:00:04]} 37. Bxd5 {[%clk 0:00:11]}  Rd8 {[%clk 0:00:04]} 38. Bf3 {[%clk 0:00:06]}  Rxd4 {[%clk 0:00:05]} 39. Kg2 {[%clk 0:00:06]}  Qd8 {[%clk 0:00:02]} 40. Bxh6+ {[%clk 0:00:06]}  Kh7 {[%clk 0:00:02]} 41. Bf4 {[%clk 0:00:06]}  Rd3 {[%clk 0:00:02]} 42. Qe2 {[%clk 0:00:07]}  b6 {[%clk 0:00:02]} 43. Be4 {[%clk 0:00:07]}  Bxe4+ {[%clk 0:00:01]} 44. Qxe4+ {[%clk 0:00:08]}  Kg7 {[%clk 0:00:02]} 45. Qf5 {[%clk 0:00:08]}  Qd5+ {[%clk 0:00:02]} 46. Qxd5 {[%clk 0:00:08]}  Rxd5 {[%clk 0:00:03]} 47. Rc2 {[%clk 0:00:09]}  Rd4 {[%clk 0:00:01]} 48. Rc7 {[%clk 0:00:09]} 1-0


[Site "https://www.chess.com"]

[Event "Early Titled Tuesday Blitz | February 8 2022"]
[White "Loay, Sameer"]
[Black "Saravana, Krishnan P."]
[WhiteFideId "8104239"]
[BlackFideId "5018382"]
[WhiteElo "2040"]
[BlackElo "2210"]
[Result "1-0"]
[Round "11"]
[TimeControl "180+1"]
[Date "2022.02.08"]
[WhiteClock "0:00:48"]
[BlackClock "0:00:04"]

1. Nf3 {[%clk 0:03:00]}  d5 {[%clk 0:02:59]} 2. g3 {[%clk 0:03:01]}  Nf6 {[%clk 0:02:58]} 3. Bg2 {[%clk 0:03:02]}  c6 {[%clk 0:02:58]} 4. O-O {[%clk 0:03:01]}  Bf5 {[%clk 0:02:59]} 5. d3 {[%clk 0:03:02]}  h6 {[%clk 0:02:59]} 6. Nbd2 {[%clk 0:03:02]}  e6 {[%clk 0:02:59]} 7. b3 {[%clk 0:03:03]}  Be7 {[%clk 0:02:59]} 8. Bb2 {[%clk 0:03:04]}  O-O {[%clk 0:02:59]} 9. Qe1 {[%clk 0:03:04]}  a5 {[%clk 0:03:00]} 10. e4 {[%clk 0:03:04]}  Bh7 {[%clk 0:03:00]} 11. a4 {[%clk 0:03:05]}  Na6 {[%clk 0:03:00]} 12. Ne5 {[%clk 0:03:05]}  Nb4 {[%clk 0:02:58]} 13. Rc1 {[%clk 0:03:06]}  Nd7 {[%clk 0:02:58]} 14. Qe2 {[%clk 0:03:05]}  Na2 {[%clk 0:02:41]} 15. Ra1 {[%clk 0:03:04]}  Nb4 {[%clk 0:02:42]} 16. Rac1 {[%clk 0:03:05]}  Nxe5 {[%clk 0:02:38]} 17. Bxe5 {[%clk 0:03:05]}  Bf6 {[%clk 0:02:36]} 18. Nf3 {[%clk 0:02:56]}  Na2 {[%clk 0:02:25]} 19. Rce1 {[%clk 0:02:49]}  dxe4 {[%clk 0:02:22]} 20. dxe4 {[%clk 0:02:44]}  Nc3 {[%clk 0:02:15]} 21. Qc4 {[%clk 0:02:38]}  Nxe4 {[%clk 0:01:40]} 22. Rxe4 {[%clk 0:02:35]}  b5 {[%clk 0:01:38]} 23. Qxc6 {[%clk 0:02:08]}  Rc8 {[%clk 0:01:37]} 24. Qb7 {[%clk 0:02:08]}  Bxe5 {[%clk 0:01:01]} 25. Rxe5 {[%clk 0:02:04]}  bxa4 {[%clk 0:01:00]} 26. bxa4 {[%clk 0:02:02]}  Rxc2 {[%clk 0:01:00]} 27. Qa7 {[%clk 0:01:43]}  Qc8 {[%clk 0:00:34]} 28. Qxa5 {[%clk 0:01:35]}  Bd3 {[%clk 0:00:34]} 29. Rfe1 {[%clk 0:01:34]}  Rd8 {[%clk 0:00:33]} 30. R5e3 {[%clk 0:01:26]}  Rc1 {[%clk 0:00:31]} 31. h3 {[%clk 0:01:25]}  Bf5 {[%clk 0:00:29]} 32. Qxd8+ {[%clk 0:01:15]}  Qxd8 {[%clk 0:00:29]} 33. Rxc1 {[%clk 0:01:15]}  Qa5 {[%clk 0:00:26]} 34. Ra1 {[%clk 0:01:08]}  Bc2 {[%clk 0:00:26]} 35. Re5 {[%clk 0:01:07]}  Qc3 {[%clk 0:00:25]} 36. Rc1 {[%clk 0:00:54]}  Qb2 {[%clk 0:00:24]} 37. Ree1 {[%clk 0:00:53]}  Bxa4 {[%clk 0:00:24]} 38. Rc8+ {[%clk 0:00:54]}  Kh7 {[%clk 0:00:24]} 39. Ne5 {[%clk 0:00:53]}  Bc2 {[%clk 0:00:20]} 40. Rxc2 {[%clk 0:00:52]}  Qb4 {[%clk 0:00:16]} 41. Rce2 {[%clk 0:00:50]}  f6 {[%clk 0:00:15]} 42. Be4+ {[%clk 0:00:48]}  f5 {[%clk 0:00:12]} 43. Bg2 {[%clk 0:00:48]}  Qc3 {[%clk 0:00:12]} 44. Nf3 {[%clk 0:00:48]}  f4 {[%clk 0:00:09]} 45. g4 {[%clk 0:00:47]}  h5 {[%clk 0:00:07]} 46. Rxe6 {[%clk 0:00:46]}  hxg4 {[%clk 0:00:07]} 47. hxg4 {[%clk 0:00:47]}  Qb4 {[%clk 0:00:04]} 48. Ng5+ {[%clk 0:00:47]}  Kg8 {[%clk 0:00:03]} 49. Re8+ {[%clk 0:00:48]}  Qf8 {[%clk 0:00:04]} 50. Bd5+ {[%clk 0:00:48]} 1-0


[Site "https://www.chess.com"]

[Event "Early Titled Tuesday Blitz | February 8 2022"]
[White "Lodici, Lorenzo"]
[Black "Chigaev, Maksim"]
[WhiteFideId "884189"]
[BlackFideId "4108116"]
[WhiteElo "2265"]
[BlackElo "2502"]
[Result "1-0"]
[Round "11"]
[TimeControl "180+1"]
[Date "2022.02.08"]
[WhiteClock "0:00:07"]
[BlackClock "0:00:05"]

1. e4 {[%clk 0:03:00]}  c5 {[%clk 0:02:53]} 2. Nf3 {[%clk 0:03:00]}  e6 {[%clk 0:02:53]} 3. g3 {[%clk 0:03:00]}  Nc6 {[%clk 0:02:52]} 4. Bg2 {[%clk 0:03:00]}  Nf6 {[%clk 0:02:53]} 5. Qe2 {[%clk 0:03:00]}  e5 {[%clk 0:02:53]} 6. O-O {[%clk 0:02:59]}  Be7 {[%clk 0:02:53]} 7. c3 {[%clk 0:03:00]}  O-O {[%clk 0:02:52]} 8. Na3 {[%clk 0:03:01]}  Re8 {[%clk 0:02:52]} 9. Nc4 {[%clk 0:03:01]}  Bf8 {[%clk 0:02:48]} 10. d3 {[%clk 0:03:01]}  h6 {[%clk 0:02:47]} 11. a3 {[%clk 0:02:59]}  d6 {[%clk 0:02:45]} 12. b4 {[%clk 0:02:58]}  b5 {[%clk 0:02:42]} 13. Ne3 {[%clk 0:02:58]}  a5 {[%clk 0:02:41]} 14. bxc5 {[%clk 0:02:55]}  dxc5 {[%clk 0:02:42]} 15. Bb2 {[%clk 0:02:56]}  Be6 {[%clk 0:02:39]} 16. Rad1 {[%clk 0:02:52]}  Bb3 {[%clk 0:02:23]} 17. Rd2 {[%clk 0:02:52]}  b4 {[%clk 0:02:23]} 18. axb4 {[%clk 0:02:45]}  axb4 {[%clk 0:02:20]} 19. cxb4 {[%clk 0:02:41]}  Nd4 {[%clk 0:02:16]} 20. Nxd4 {[%clk 0:02:36]}  cxd4 {[%clk 0:02:10]} 21. Nc2 {[%clk 0:02:27]}  Ra2 {[%clk 0:02:03]} 22. Rb1 {[%clk 0:02:22]}  Qd7 {[%clk 0:01:33]} 23. Na1 {[%clk 0:02:21]}  Be6 {[%clk 0:01:19]} 24. Bc1 {[%clk 0:02:20]}  Rea8 {[%clk 0:01:17]} 25. Rxa2 {[%clk 0:02:09]}  Rxa2 {[%clk 0:01:18]} 26. Qd1 {[%clk 0:01:44]}  Qa7 {[%clk 0:01:11]} 27. Nb3 {[%clk 0:01:34]}  Bxb4 {[%clk 0:01:05]} 28. Bf3 {[%clk 0:01:13]}  Bc3 {[%clk 0:00:56]} 29. Nd2 {[%clk 0:01:07]}  Qa6 {[%clk 0:00:52]} 30. Be2 {[%clk 0:01:03]}  Kh7 {[%clk 0:00:46]} 31. Kg2 {[%clk 0:01:01]}  Bd7 {[%clk 0:00:40]} 32. Nc4 {[%clk 0:00:57]}  Qe6 {[%clk 0:00:29]} 33. Kg1 {[%clk 0:00:45]}  Ba4 {[%clk 0:00:19]} 34. Qf1 {[%clk 0:00:43]}  Nd7 {[%clk 0:00:17]} 35. Bd1 {[%clk 0:00:41]}  Bc2 {[%clk 0:00:12]} 36. Bxc2 {[%clk 0:00:39]}  Rxc2 {[%clk 0:00:13]} 37. Qd1 {[%clk 0:00:39]}  Ra2 {[%clk 0:00:13]} 38. Qf3 {[%clk 0:00:38]}  Nf6 {[%clk 0:00:09]} 39. Ba3 {[%clk 0:00:33]}  Qg4 {[%clk 0:00:06]} 40. Kg2 {[%clk 0:00:31]}  Qxf3+ {[%clk 0:00:06]} 41. Kxf3 {[%clk 0:00:32]}  h5 {[%clk 0:00:07]} 42. h3 {[%clk 0:00:32]}  g5 {[%clk 0:00:07]} 43. Be7 {[%clk 0:00:31]}  g4+ {[%clk 0:00:07]} 44. Kg2 {[%clk 0:00:29]}  gxh3+ {[%clk 0:00:07]} 45. Kxh3 {[%clk 0:00:24]}  Ng4 {[%clk 0:00:08]} 46. Kh4 {[%clk 0:00:24]}  Rxf2 {[%clk 0:00:05]} 47. Kxh5 {[%clk 0:00:23]}  Ne3 {[%clk 0:00:04]} 48. Nxe5 {[%clk 0:00:22]}  f6 {[%clk 0:00:05]} 49. Ng4 {[%clk 0:00:19]}  Nxg4 {[%clk 0:00:02]} 50. Kxg4 {[%clk 0:00:20]}  Kg6 {[%clk 0:00:03]} 51. Rb6 {[%clk 0:00:19]}  Kf7 {[%clk 0:00:03]} 52. Bd8 {[%clk 0:00:18]}  Bd2 {[%clk 0:00:02]} 53. Rb2 {[%clk 0:00:14]}  Ke6 {[%clk 0:00:01]} 54. Ba5 {[%clk 0:00:13]}  Be3 {[%clk 0:00:02]} 55. Rxf2 {[%clk 0:00:12]}  Bxf2 {[%clk 0:00:03]} 56. Bc7 {[%clk 0:00:13]}  Be3 {[%clk 0:00:02]} 57. Bf4 {[%clk 0:00:13]}  Bf2 {[%clk 0:00:03]} 58. Kf3 {[%clk 0:00:12]}  Be1 {[%clk 0:00:03]} 59. Ke2 {[%clk 0:00:12]}  Bb4 {[%clk 0:00:04]} 60. g4 {[%clk 0:00:12]}  Be7 {[%clk 0:00:04]} 61. Kd1 {[%clk 0:00:13]}  Bd8 {[%clk 0:00:04]} 62. Kc2 {[%clk 0:00:13]}  Ba5 {[%clk 0:00:03]} 63. Kb3 {[%clk 0:00:13]}  Be1 {[%clk 0:00:03]} 64. Kc4 {[%clk 0:00:13]}  Bf2 {[%clk 0:00:04]} 65. Kc5 {[%clk 0:00:12]}  Bg1 {[%clk 0:00:04]} 66. Kc6 {[%clk 0:00:13]}  Be3 {[%clk 0:00:04]} 67. Bg3 {[%clk 0:00:13]}  Bg1 {[%clk 0:00:05]} 68. Kc7 {[%clk 0:00:13]}  Be3 {[%clk 0:00:04]} 69. Kd8 {[%clk 0:00:13]}  Kf7 {[%clk 0:00:04]} 70. Kd7 {[%clk 0:00:13]}  Kg6 {[%clk 0:00:05]} 71. Ke6 {[%clk 0:00:10]}  Kg5 {[%clk 0:00:05]} 72. Bc7 {[%clk 0:00:10]}  Kxg4 {[%clk 0:00:04]} 73. Kxf6 {[%clk 0:00:07]}  Kf3 {[%clk 0:00:05]} 74. e5 {[%clk 0:00:03]}  Bf4 {[%clk 0:00:05]} 75. e6 {[%clk 0:00:02]}  Bxc7 {[%clk 0:00:05]} 76. e7 {[%clk 0:00:03]}  Ke3 {[%clk 0:00:06]} 77. e8=Q+ {[%clk 0:00:03]}  Kxd3 {[%clk 0:00:07]} 78. Kf5 {[%clk 0:00:04]}  Ba5 {[%clk 0:00:06]} 79. Qe4+ {[%clk 0:00:04]}  Kc3 {[%clk 0:00:06]} 80. Qc6+ {[%clk 0:00:05]}  Kd2 {[%clk 0:00:07]} 81. Qa4 {[%clk 0:00:04]}  Bc3 {[%clk 0:00:07]} 82. Ke4 {[%clk 0:00:05]}  Ke2 {[%clk 0:00:08]} 83. Qc4+ {[%clk 0:00:06]}  Kd2 {[%clk 0:00:08]} 84. Qd3+ {[%clk 0:00:06]}  Kc1 {[%clk 0:00:04]} 85. Qe2 {[%clk 0:00:07]}  Bd2 {[%clk 0:00:04]} 86. Kd3 {[%clk 0:00:07]}  Bc3 {[%clk 0:00:05]} 87. Qc2# {[%clk 0:00:07]} 1-0


[Site "https://www.chess.com"]

[Event "Early Titled Tuesday Blitz | February 8 2022"]
[White "Loy, Konstantin"]
[Black "Vlassov, Nikolai"]
[WhiteFideId "14122499"]
[BlackFideId "4103360"]
[WhiteElo "2084"]
[BlackElo "2407"]
[Result "0-1"]
[Round "11"]
[TimeControl "180+1"]
[Date "2022.02.08"]
[WhiteClock "0:00:02"]
[BlackClock "0:00:26"]

1. e4 {[%clk 0:02:49]}  Nc6 {[%clk 0:02:59]} 2. Nf3 {[%clk 0:02:48]}  d5 {[%clk 0:02:59]} 3. exd5 {[%clk 0:02:46]}  Qxd5 {[%clk 0:03:00]} 4. d4 {[%clk 0:02:46]}  Bg4 {[%clk 0:03:00]} 5. Be2 {[%clk 0:02:45]}  O-O-O {[%clk 0:03:00]} 6. c3 {[%clk 0:02:35]}  Nf6 {[%clk 0:02:58]} 7. O-O {[%clk 0:02:34]}  e5 {[%clk 0:02:58]} 8. dxe5 {[%clk 0:02:32]}  Qxd1 {[%clk 0:02:52]} 9. Rxd1 {[%clk 0:02:31]}  Rxd1+ {[%clk 0:02:45]} 10. Bxd1 {[%clk 0:02:32]}  Bxf3 {[%clk 0:02:45]} 11. Bxf3 {[%clk 0:02:32]}  Nxe5 {[%clk 0:02:45]} 12. Be2 {[%clk 0:02:32]}  Bc5 {[%clk 0:02:45]} 13. Bf4 {[%clk 0:01:59]}  Re8 {[%clk 0:02:39]} 14. Kf1 {[%clk 0:01:53]}  Ne4 {[%clk 0:02:11]} 15. f3 {[%clk 0:01:38]}  Nd6 {[%clk 0:02:02]} 16. Nd2 {[%clk 0:01:34]}  Ng6 {[%clk 0:01:55]} 17. Bg3 {[%clk 0:01:29]}  Nf5 {[%clk 0:01:54]} 18. Bf2 {[%clk 0:01:13]}  Bxf2 {[%clk 0:01:46]} 19. Kxf2 {[%clk 0:01:14]}  Nf4 {[%clk 0:01:45]} 20. Re1 {[%clk 0:00:54]}  Nd6 {[%clk 0:01:15]} 21. Bf1 {[%clk 0:00:46]}  Rxe1 {[%clk 0:01:14]} 22. Kxe1 {[%clk 0:00:47]}  Kd7 {[%clk 0:01:13]} 23. g3 {[%clk 0:00:46]}  Ne6 {[%clk 0:01:13]} 24. Bd3 {[%clk 0:00:46]}  f5 {[%clk 0:01:12]} 25. f4 {[%clk 0:00:44]}  Nc5 {[%clk 0:01:11]} 26. Bc2 {[%clk 0:00:43]}  a5 {[%clk 0:01:10]} 27. b4 {[%clk 0:00:40]}  axb4 {[%clk 0:01:06]} 28. cxb4 {[%clk 0:00:41]}  Ne6 {[%clk 0:01:06]} 29. Nb3 {[%clk 0:00:35]}  Kc6 {[%clk 0:01:04]} 30. Kd2 {[%clk 0:00:30]}  Kd5 {[%clk 0:01:00]} 31. Kc3 {[%clk 0:00:24]}  b6 {[%clk 0:00:58]} 32. a4 {[%clk 0:00:23]}  c5 {[%clk 0:00:48]} 33. bxc5 {[%clk 0:00:20]}  bxc5 {[%clk 0:00:49]} 34. Nd2 {[%clk 0:00:11]}  Nd4 {[%clk 0:00:46]} 35. Bb3+ {[%clk 0:00:05]}  Kc6 {[%clk 0:00:41]} 36. Bc4 {[%clk 0:00:04]}  Kb6 {[%clk 0:00:38]} 37. Nb3 {[%clk 0:00:04]}  Ne4+ {[%clk 0:00:32]} 38. Kd3 {[%clk 0:00:03]}  Nf2+ {[%clk 0:00:32]} 39. Ke3 {[%clk 0:00:02]}  Ng4+ {[%clk 0:00:32]} 40. Kd3 {[%clk 0:00:02]}  Nxb3 {[%clk 0:00:29]} 41. Bxb3 {[%clk 0:00:03]}  Nxh2 {[%clk 0:00:30]} 42. Kc4 {[%clk 0:00:03]}  Nf1 {[%clk 0:00:29]} 43. a5+ {[%clk 0:00:03]}  Kxa5 {[%clk 0:00:29]} 44. Kxc5 {[%clk 0:00:03]}  Nxg3 {[%clk 0:00:29]} 45. Kd5 {[%clk 0:00:04]}  h5 {[%clk 0:00:29]} 46. Bd1 {[%clk 0:00:03]}  h4 {[%clk 0:00:29]} 47. Bf3 {[%clk 0:00:02]}  Kb4 {[%clk 0:00:27]} 48. Ke6 {[%clk 0:00:02]}  Kc3 {[%clk 0:00:25]} 49. Kf7 {[%clk 0:00:03]}  Kd4 {[%clk 0:00:26]} 50. Kxg7 {[%clk 0:00:03]}  Ke3 {[%clk 0:00:26]} 51. Bb7 {[%clk 0:00:03]}  Kxf4 {[%clk 0:00:26]} 52. Kg6 {[%clk 0:00:03]}  h3 {[%clk 0:00:26]} 53. Kf6 {[%clk 0:00:02]}  h2 {[%clk 0:00:25]} 54. Kg6 {[%clk 0:00:02]}  Ne4 {[%clk 0:00:26]} 0-1


[Site "https://www.chess.com"]